bitfinex-derivatives/quotes_SOLF0:USTF0_20250411
["timestamp","ask_amount","ask_price","bid_price","bid_amount"]
[1744360929138,1.48587776,117.24,117.17,8.5393]
[1744360929443,1.48587776,117.24,117.11,51.52]
[1744360929444,4.4876,117.23,117.16,21.86559892]
[1744360929637,4.4876,117.23,117.14,21.86559892]
[1744360929939,26.35319892,117.23,117.14,21.86559892]
[1744360930139,26.35319892,117.23,117.16,8.5398]
[1744360930340,0.06083623,117.2,117.17,0.05969827]
[1744360930540,42.98,117.19,117.17,0.05969827]
[1744360930838,42.98,117.19,117.12,2.1974]
[1744360931342,42.98,117.19,117.13,8.542]
[1744360931542,42.98,117.19,117.12,2.1974]
[1744360931941,8.60273601,117.17,117.14,8.59514911]
[1744360932143,0.06283601,117.17,117.14,0.05384911]
[1744360932642,0.06283601,117.17,117.14,8.59514911]
[1744360933041,0.06283601,117.17,117.14,0.05384911]
[1744360933438,8.60243601,117.17,117.14,0.05384911]
[1744360934043,8.60243601,117.17,117.14,8.59524911]
[1744360935644,0.06283601,117.17,117.14,0.05384911]
[1744360937050,0.06283601,117.17,117.15,8.541]
[1744360937541,0.06283601,117.17,117.14,0.05384911]
[1744360937947,0.06283601,117.17,117.16,8.5402]
[1744360940047,0.06283601,117.17,117.14,0.05384911]
[1744360940747,0.06283601,117.17,117.15,8.5404]
[1744360941349,0.06283601,117.17,117.16,8.5402]
[1744360941549,0.06283601,117.17,117.14,0.05384911]
[1744360941849,0.06283601,117.17,117.15,8.5403]
[1744360942146,0.06283601,117.17,117.14,0.05384911]
[1744360943249,8.5406,117.16,117.14,0.05384911]
[1744360944552,0.06283601,117.17,117.14,0.05384911]
[1744360944947,0.06283601,117.17,117.15,8.5409]
[1744360945148,0.06283601,117.17,117.14,0.05384911]
[1744360945554,0.06283601,117.17,117.15,8.5405]
[1744360946053,0.06283601,117.17,117.15,8.5404]
[1744360946351,0.06283601,117.17,117.14,0.05384911]
[1744360946953,0.06283601,117.17,117.14,2.28454911]
[1744360947451,0.06283601,117.17,117.16,8.5402]
[1744360947650,0.06283601,117.17,117.14,0.05384911]
[1744360948043,0.06283601,117.17,117.15,8.5406]
[1744360948257,0.06283601,117.17,117.14,0.05384911]
[1744360948859,0.06283601,117.17,117.16,8.5402]
[1744360949046,2.3043,117.23,117.15,13.6485646]
[1744360949250,2.3043,117.23,117.18,13.6485646]
[1744360949445,2.3043,117.23,117.2,8.537]
[1744360949660,2.3043,117.23,117.16,20.2452646]
[1744360950157,8.59989831,117.21,117.18,0.05600454]
[1744360950357,0.06259831,117.21,117.18,0.05600454]
[1744360950957,8.59919831,117.21,117.19,8.5379]
[1744360951157,8.59919831,117.21,117.18,0.05600454]
[1744360951357,8.5374,117.2,117.18,0.05600454]
[1744360951857,0.06259831,117.21,117.18,0.05600454]
[1744360952050,56.6085646,117.2,117.18,0.05600454]
[1744360952350,58.7805646,117.2,117.18,0.05600454]
[1744360953058,8.5381,117.19,117.18,0.05600454]
[1744360956358,8.5381,117.19,117.18,4.54e-06]
[1744360957051,45.132,117.2,117.18,4.54e-06]
[1744360957252,42.96,117.2,117.18,4.54e-06]
[1744360957758,8.5381,117.19,117.18,4.54e-06]
[1744360958461,51.4977,117.2,117.18,4.54e-06]
[1744360961057,8.5381,117.19,117.18,4.54e-06]
[1744360962060,51.4977,117.2,117.18,4.54e-06]
[1744360962755,8.5381,117.19,117.18,4.54e-06]
[1744360963659,8.5381,117.19,117.18,300.00000454]
[1744360966566,42.96,117.2,117.18,300.00000454]
[1744360968260,51.4973,117.2,117.18,308.53840454]
[1744360968464,42.96,117.2,117.18,300.00000454]
[1744360969060,51.4976,117.2,117.18,300.00000454]
[1744360969762,8.5381,117.19,117.18,300.00000454]
[1744360969961,42.96,117.2,117.18,300.00000454]
[1744360970358,51.4977,117.2,117.18,300.00000454]
[1744360971363,8.5381,117.19,117.18,300.00000454]
[1744360973165,51.4977,117.2,117.18,300.00000454]
[1744360973367,42.96,117.2,117.18,300.00000454]
[1744360974067,51.4977,117.2,117.18,300.00000454]
[1744360976867,42.96,117.2,117.18,300.00000454]
[1744360977271,60.22902947,117.2,117.18,300.00000454]
[1744360977571,51.69132947,117.2,117.18,300.00000454]
[1744360978072,60.22902947,117.2,117.18,300.00000454]
[1744360978273,51.4977,117.2,117.18,300.00000454]
[1744360978472,60.22902947,117.2,117.18,300.00000454]
[1744360978774,51.69132947,117.2,117.19,8.5381]
[1744360978965,42.96,117.2,117.19,8.5381]
[1744360979166,51.19132947,117.27,117.19,12.32543634]
[1744360979367,51.19132947,117.27,117.21,8.73132947]
[1744360979368,8.73132947,117.26,117.21,8.73132947]
[1744360979671,8.73132947,117.24,117.19,11.00272947]
[1744360979870,8.73132947,117.24,117.2,3.59079634]
[1744360980067,8.5354,117.23,117.2,8.5368]
[1744360980271,8.73132947,117.22,117.2,0.05706739]
[1744360980771,17.26752947,117.22,117.2,0.05706739]
[1744360982075,8.5362,117.22,117.2,0.05706739]
[1744360982979,42.52053292,117.23,117.2,8.78839686]
[1744360983672,42.52053292,117.23,117.21,8.5362]
[1744360983981,42.52053292,117.23,117.2,0.05706739]
[1744360984276,51.05613292,117.23,117.2,8.59406739]
[1744360985179,51.05613292,117.23,117.21,8.5365]
[1744360985774,42.52053292,117.23,117.21,8.5365]
[1744360986577,42.52053292,117.23,117.22,8.5359]
[1744360987175,42.52053292,117.23,117.2,0.05706739]
[1744360987471,51.25186239,117.23,117.2,0.05706739]
[1744360987872,8.73132947,117.22,117.2,0.05706739]
[1744360988377,8.5366,117.21,117.2,0.05706739]
[1744360989081,17.26752947,117.22,117.2,0.05706739]
[1744360989376,8.5362,117.22,117.2,0.05706739]
[1744360990079,42.52053292,117.23,117.2,0.05706739]
[1744360990277,13.63769821,117.22,117.18,300.0]
[1744360990476,13.63769821,117.19,117.18,300.0]
[1744360990678,8.5402,117.17,117.14,8.5414]
[1744360990871,13.63769821,117.17,117.13,2.41901]
[1744360991377,8.60307624,117.16,117.14,0.05386944]
[1744360991582,41.16,117.15,117.14,0.05386944]
[1744360992079,49.701,117.15,117.14,0.05386944]
[1744360992480,41.16,117.15,117.14,0.05386944]
[1744360992784,49.701,117.15,117.14,0.05386944]
[1744360993385,41.16,117.15,117.14,0.05386944]
[1744360993984,49.701,117.15,117.14,0.05386944]
[1744360994587,54.79769821,117.15,117.09,8.5447]
[1744360994883,54.79769821,117.15,117.07,20.31819821]
[1744360995089,8.5425,117.13,117.07,20.31819821]
[1744360995383,41.16,117.15,117.1,8.5441]
[1744360995779,13.6956833,117.14,117.11,0.05897954]
[1744360996586,8.543,117.13,117.11,0.05897954]
[1744360997787,8.5432,117.12,117.11,0.05897954]
[1744361000584,8.5451,117.1,117.07,8.5467]
[1744361000886,41.18,117.1,117.04,75.63769821]
[1744361001289,8.5457,117.09,117.04,75.63769821]
[1744361001887,0.06177093,117.08,117.05,8.57425949]
[1744361002386,8.60787093,117.08,117.05,8.57425949]
[1744361002590,0.06177093,117.08,117.06,8.5475]
[1744361002783,0.06177093,117.08,117.05,0.02665949]
[1744361003786,0.06177093,117.08,117.06,8.5473]
[1744361003987,8.60797093,117.08,117.05,0.02665949]
[1744361004286,0.06177093,117.08,117.05,0.02665949]
[1744361005483,8.5475,117.06,117.05,0.02665949]
[1744361005792,49.7475,117.06,117.05,0.02665949]
[1744361006891,41.2,117.06,117.05,0.02665949]
[1744361009887,49.7475,117.06,117.05,0.02665949]
[1744361010186,41.2,117.06,117.01,18.03179821]
[1744361010388,41.2,117.06,117.01,4.3941]
[1744361010588,54.83769821,117.06,116.99,13.63769821]
[1744361010793,8.551,117.02,116.99,8.5525]
[1744361010991,49.751,117.02,116.99,8.5525]
[1744361011193,41.2,117.02,116.97,4.3621]
[1744361011389,41.25539225,117.02,116.97,4.3621]
[1744361011693,0.05539225,117.02,117.01,13.63769821]
[1744361011883,8.5484,117.05,117.02,8.5503]
[1744361013094,8.60915216,117.05,117.02,8.60550374]
[1744361013296,8.60915216,117.05,117.02,0.05520374]
[1744361013796,8.60915216,117.05,117.02,8.60540374]
[1744361015498,13.69845037,117.05,116.97,4.3621]
[1744361015687,13.63769821,117.03,116.95,15.85539821]
[1744361015893,41.58,117.02,116.95,15.85539821]
[1744361016093,8.5517,117.01,116.97,8.5536]
[1744361016294,41.58,117.02,116.95,15.85539821]
[1744361016798,0.06239362,117.0,116.95,15.85539821]
[1744361016997,0.06239362,117.0,116.97,8.5536]
[1744361019203,0.06239362,117.0,116.95,77.85539821]
[1744361019802,0.06239362,117.0,116.98,8.553]
[1744361020402,0.06239362,117.0,116.99,8.5526]
[1744361021407,0.06239362,117.0,116.98,8.5531]
[1744361021696,0.06239362,117.0,116.95,77.85539821]
[1744361022094,8.61439362,117.0,116.97,8.5537]
[1744361022603,8.61439362,117.0,116.96,8.5546]
[1744361022604,0.06239362,117.0,116.96,8.5546]
[1744361022801,8.553,116.99,116.96,8.5546]
[1744361024006,8.61459362,117.0,116.97,8.554]
[1744361024302,0.06239362,117.0,116.95,2.2177]
[1744361024502,8.61469362,117.0,116.97,8.5536]
[1744361025907,8.5527,116.99,116.96,8.5545]
[1744361026606,8.61469362,117.0,116.97,8.5541]
[1744361028105,8.5528,116.99,116.96,8.5546]
[1744361028499,0.06239362,117.0,116.95,2.2177]
[1744361028696,0.06239362,117.0,116.92,18.10229821]
[1744361028896,55.23769821,117.01,116.92,80.10229821]
[1744361029108,0.06108154,116.97,116.95,8.5555]
[1744361029298,0.06108154,116.97,116.94,13.63769821]
[1744361029705,0.06108154,116.97,116.96,8.5548]
[1744361029900,679.4493,117.03,116.96,13.63769821]
[1744361030101,43.91,117.04,116.98,13.63769821]
[1744361030403,41.6,117.04,116.98,13.63769821]
[1744361030807,8.5499,117.03,117.0,8.5515]
[1744361031002,8.5499,117.03,117.0,8.61227706]
[1744361031205,0.06345502,117.03,117.0,0.06077706]
[1744361031903,8.61355502,117.03,117.0,8.61247706]
[1744361032203,0.06345502,117.03,117.0,0.06077706]
[1744361033305,8.61365502,117.03,117.0,8.61217706]
[1744361033604,0.06345502,117.03,117.0,0.06077706]
[1744361034910,0.06345502,117.03,117.0,13.69847527]
[1744361035300,0.06345502,117.03,117.02,8.5505]
[1744361037309,0.06345502,117.03,117.01,8.5509]
[1744361037705,0.06345502,117.03,117.0,0.06077706]
[1744361037904,13.70115323,117.03,117.0,0.06077706]
[1744361038105,55.30115323,117.03,117.0,0.06077706]
[1744361038301,41.66345502,117.03,117.0,0.06077706]
[1744361038707,0.06345502,117.03,117.0,0.06077706]
[1744361039310,0.06345502,117.03,117.01,8.5508]
[1744361039907,0.06345502,117.03,117.0,8.61237706]
[1744361040610,8.61335502,117.03,117.0,8.61237706]
[1744361041314,0.06345502,117.03,117.0,8.61237706]
[1744361042909,0.06345502,117.03,117.0,0.06077706]
[1744361044814,0.06345502,117.03,117.01,8.5508]
[1744361045909,0.06345502,117.03,117.02,8.5505]
[1744361046109,15.94419821,117.1,117.01,13.63769821]
[1744361046411,13.63769821,117.12,117.07,8.5463]
[1744361047215,8.5448,117.1,117.07,8.5463]
[1744361047415,8.5448,117.1,117.08,0.06429153]
[1744361047709,8.60307746,117.11,117.08,8.60999153]
[1744361047915,0.05887746,117.11,117.08,8.60999153]
[1744361048415,8.60307746,117.11,117.08,8.60999153]
[1744361048611,8.60307746,117.11,117.08,0.06429153]
[1744361049214,8.60307746,117.11,117.08,8.60999153]
[1744361049810,0.05887746,117.11,117.09,8.5453]
[1744361050309,0.05887746,117.11,117.08,0.06429153]
[1744361050509,8.60317746,117.11,117.08,0.06429153]
[1744361050915,8.60317746,117.11,117.08,8.60999153]
[1744361051506,0.05887746,117.11,117.09,8.5453]
[1744361051711,0.05887746,117.11,117.08,0.06429153]
[1744361052121,0.05887746,117.11,117.09,8.5449]
[1744361054317,8.60327746,117.11,117.08,0.06429153]
[1744361054624,8.5447,117.1,117.08,0.06429153]
[1744361055220,0.05887746,117.11,117.08,0.06429153]
[1744361055718,0.05887746,117.11,117.09,8.5449]
[1744361056521,0.05887746,117.11,117.1,8.5446]
[1744361056923,0.05887746,117.11,117.08,0.06429153]
[1744361057112,0.05887746,117.11,117.09,8.545]
[1744361057312,0.05887746,117.11,117.08,0.06429153]
[1744361057516,8.60317746,117.11,117.08,8.60999153]
[1744361058321,0.05887746,117.11,117.09,8.5451]
[1744361058821,0.05887746,117.11,117.08,0.06429153]
[1744361059321,0.05887746,117.11,117.08,8.60979153]
[1744361059720,8.60297746,117.11,117.08,8.60979153]
[1744361060015,0.05887746,117.11,117.08,8.60979153]
[1744361060624,8.60287746,117.11,117.08,8.60979153]
[1744361062526,0.05887746,117.11,117.08,0.06429153]
[1744361062917,0.05887746,117.11,117.08,13.70198974]
[1744361063227,0.05887746,117.11,117.1,8.5446]
[1744361063728,0.05887746,117.11,117.09,8.545]
[1744361065831,0.05887746,117.11,117.1,8.5446]
[1744361068030,0.05887746,117.11,117.09,10.8514]
[1744361068334,0.05887746,117.11,117.09,2.3064]
[1744361068634,0.05887746,117.11,117.1,8.5446]
[1744361069636,0.05887746,117.11,117.08,0.06429153]
[1744361070138,8.60317746,117.11,117.08,8.60999153]
[1744361070331,0.05887746,117.11,117.08,8.60999153]
[1744361071742,0.05887746,117.11,117.09,8.5452]
[1744361073633,0.05887746,117.11,117.1,8.5446]
[1744361073935,42.84,117.15,117.09,13.63769821]
[1744361074138,13.63769821,117.18,117.13,8.542]
[1744361074139,42.84,117.18,117.13,8.542]
[1744361074445,42.84,117.18,117.09,42.84]
[1744361074745,42.84,117.18,117.11,13.63769821]
[1744361075243,0.06334924,117.16,117.13,0.05815083]
[1744361076143,8.60394924,117.16,117.13,8.60005083]
[1744361077443,8.541,117.15,117.13,0.05815083]
[1744361077848,0.06334924,117.16,117.14,8.5415]
[1744361078745,8.60354924,117.16,117.13,8.60025083]
[1744361079848,0.06334924,117.16,117.14,8.5417]
[1744361081047,8.60374924,117.16,117.13,8.60025083]
[1744361081252,0.06334924,117.16,117.13,0.05815083]
[1744361082150,8.60394924,117.16,117.13,8.60055083]
[1744361083051,8.541,117.15,117.13,0.05815083]
[1744361083249,0.06334924,117.16,117.13,0.05815083]
[1744361084046,8.5415,117.15,117.13,0.05815083]
[1744361084845,8.5417,117.14,117.13,0.05815083]
[1744361086251,8.5413,117.15,117.13,0.05815083]
[1744361086552,15.84009828,117.16,117.13,0.05815083]
[1744361086741,13.71269828,117.16,117.13,0.05815083]
[1744361087444,8.5417,117.14,117.13,0.05815083]
[1744361088857,0.06334924,117.16,117.13,0.05815083]
[1744361089451,8.60394924,117.16,117.13,8.60025083]
[1744361089651,0.06334924,117.16,117.13,0.05815083]
[1744361090051,0.06334924,117.16,117.13,13.70749987]
[1744361090251,55.62934904,117.24,117.15,13.64934904]
[1744361090446,55.62934904,117.24,117.17,13.64934904]
[1744361090656,8.5362,117.22,117.19,8.5377]
[1744361091458,8.59249874,117.22,117.19,8.60224005]
[1744361092556,0.05629874,117.22,117.19,0.06454005]
[1744361093556,0.05629874,117.22,117.19,55.67388909]
[1744361093850,0.05629874,117.22,117.2,8.5368]
[1744361094055,0.05629874,117.22,117.19,0.06454005]
[1744361094448,0.05629874,117.22,117.19,8.60234005]
[1744361094648,0.05629874,117.22,117.19,0.06454005]
[1744361096356,8.5371,117.21,117.19,0.06454005]
[1744361096952,8.5373,117.2,117.19,0.06454005]
[1744361098156,8.5395,117.17,117.14,8.5415]
[1744361098853,8.5395,117.17,117.13,8.5421]
[1744361099456,0.06098501,117.16,117.14,0.06535107]
[1744361099957,0.06098501,117.16,117.15,8.541]
[1744361101657,0.06098501,117.16,117.14,8.60655107]
[1744361101854,41.96,117.26,117.15,55.60934904]
[1744361102156,8.5347,117.24,117.17,13.64934904]
[1744361102855,8.5351,117.23,117.2,8.5369]
[1744361103057,0.05530331,117.22,117.2,8.5369]
[1744361103557,0.05530331,117.22,117.19,8.59335432]
[1744361103755,13.70465235,117.22,117.19,0.05565432]
[1744361103960,57.78235235,117.22,117.19,0.05565432]
[1744361104459,13.64934904,117.2,117.14,62.0]
[1744361104958,13.64934904,117.18,117.14,62.0]
[1744361105159,56.08934904,117.18,117.14,62.0]
[1744361105550,0.06507684,117.17,117.15,0.05780443]
[1744361107350,8.5402,117.16,117.15,0.05780443]
[1744361108560,42.50507684,117.17,117.15,0.05780443]
[1744361109275,8.5402,117.16,117.15,0.05780443]
[1744361111959,51.04497684,117.17,117.15,0.05780443]
[1744361112164,42.50507684,117.17,117.15,0.05780443]
[1744361112353,0.06507684,117.17,117.15,0.05780443]
[1744361113369,0.06507684,117.17,117.15,8.59840443]
[1744361113959,0.06507684,117.17,117.15,0.05780443]
[1744361114565,0.06507684,117.17,117.16,8.5402]
[1744361116462,42.44,117.24,117.15,13.70715347]
[1744361116662,42.44,117.24,117.17,13.64934904]
[1744361116865,50.9748,117.24,117.21,8.5365]
[1744361117073,42.44,117.24,117.17,13.64934904]
[1744361117262,42.44,117.24,117.16,24.07355043]
[1744361117462,42.44,117.24,117.22,8.5358]
[1744361117663,42.44,117.24,117.16,24.07355043]
[1744361117963,21.81315043,117.27,117.2,8.537]
[1744361118173,494.99741165,117.42,117.27,51.43]
[1744361118366,493.51432018,117.42,117.3,21.81315043]
[1744361118567,0.06052377,117.36,117.33,0.05555818]
[1744361118762,44.16,117.36,117.3,21.81315043]
[1744361118963,44.16,117.35,117.33,0.05652322]
[1744361119169,44.16,117.35,117.34,23.45118116]
[1744361119468,1169.79432018,117.42,117.34,36.70003123]
[1744361119469,44.16,117.36,117.34,36.70003123]
[1744361119671,44.16,117.36,117.35,14.8868808]
[1744361119866,44.16,117.36,117.34,198.03984371]
[1744361120267,698.09315043,117.42,117.34,198.03984371]
[1744361120466,45.66,117.41,117.34,198.03984371]
[1744361120671,0.06385794,117.39,117.37,0.06109349]
[1744361121271,45.66,117.38,117.37,0.06109349]
[1744361121460,45.66,117.38,117.37,220.21909421]
[1744361121665,54.18,117.38,117.37,202.82909421]
[1744361122474,54.18,117.38,117.37,60.93438929]
[1744361122770,45.66,117.38,117.37,60.93438929]
[1744361122963,45.66,117.38,117.36,92.21039263]
[1744361122964,75.99315043,117.38,117.36,92.21039263]
[1744361123165,67.47315043,117.38,117.36,92.21039263]
[1744361123373,45.66,117.38,117.36,92.21039263]
[1744361124871,45.66,117.38,117.37,8.525]
[1744361125065,45.66,117.38,117.36,0.05491729]
[1744361125573,45.66,117.38,117.36,8.58041729]
[1744361126477,17.10412918,117.38,117.37,67.14376712]
[1744361127176,17.10412918,117.38,117.37,78.32476259]
[1744361127378,45.64,117.38,117.37,78.32476259]
[1744361128579,12.74623335,117.38,117.31,288.24112591]
[1744361128874,12.74623335,117.38,117.33,8.5273]
[1744361129478,12.74623335,117.38,117.36,91.58402982]
[1744361129779,0.06130008,117.37,117.34,0.05542106]
[1744361131882,21.81315043,117.36,117.34,0.05542106]
[1744361132184,675.48,117.35,117.34,0.05542106]
[1744361132876,675.48,117.35,117.31,8.5291]
[1744361133179,45.62,117.34,117.31,8.5291]
[1744361134081,45.6763697,117.34,117.31,8.58991143]
[1744361134677,45.6763697,117.34,117.31,0.06081143]
[1744361135482,54.2034697,117.34,117.31,0.06081143]
[1744361135687,21.81315043,117.32,117.22,21.81315043]
[1744361135875,71.3263697,117.34,117.23,14.48515231]
[1744361135876,21.81315043,117.3,117.23,14.48515231]
[1744361136080,52.5713,117.29,117.24,23.01925231]
[1744361136281,675.46,117.28,117.25,5.06367048]
[1744361136484,675.46,117.28,117.21,4.3015]
[1744361136676,675.46,117.28,117.22,14.49217815]
[1744361136877,0.06557008,117.26,117.23,14.54828326]
[1744361137077,44.04,117.25,117.24,5.06613485]
[1744361137283,44.04,117.25,117.24,13.60053485]
[1744361137487,44.04,117.25,117.23,0.05610511]
[1744361138390,0.06557008,117.26,117.23,0.05610511]
[1744361138593,44.06,117.24,117.23,0.05610511]
[1744361139794,52.5944,117.24,117.23,0.05610511]
[1744361140182,52.5944,117.24,117.19,8.5378]
[1744361140589,74.40755043,117.24,117.19,8.5378]
[1744361141293,0.06426559,117.23,117.2,0.06298351]
[1744361141486,21.81315043,117.22,117.2,0.06298351]
[1744361141689,675.74,117.21,117.2,0.06298351]
[1744361142995,675.74,117.21,117.12,54.62568657]
[1744361143191,44.06,117.2,117.13,18.8932041]
[1744361143394,52.5976,117.2,117.15,8.5405]
[1744361143695,44.06,117.2,117.13,4.3914]
[1744361143899,44.06,117.2,117.16,8.5399]
[1744361144096,0.06413479,117.18,117.16,8.5399]
[1744361145393,0.06413479,117.18,117.15,0.0224214]
[1744361145998,8.60343479,117.18,117.15,0.0224214]
[1744361147291,0.06413479,117.18,117.15,0.0224214]
[1744361148996,0.06413479,117.18,117.15,8.5632214]
[1744361149194,44.08,117.17,117.15,0.0224214]
[1744361149704,44.08,117.17,117.15,8.5630214]
[1744361152802,44.08,117.17,117.15,0.0224214]
[1744361153302,44.08,117.17,117.15,8.5633214]
[1744361153606,44.08,117.17,117.15,0.0224214]
[1744361153906,44.08,117.17,117.15,8.5630214]
[1744361154106,44.08,117.17,117.15,0.0224214]
[1744361156009,44.08,117.17,117.15,8.5630214]
[1744361157310,44.08,117.17,117.16,8.5402]
[1744361157514,44.1,117.17,117.16,5.07339115]
[1744361157904,44.1,117.17,117.16,13.61359115]
[1744361158412,44.1,117.17,117.15,0.0224214]
[1744361158607,44.1,117.17,117.15,8.5630214]
[1744361159704,44.1,117.17,117.16,8.5402]
[1744361160211,44.1,117.17,117.15,8.5630214]
[1744361160411,44.1,117.17,117.15,0.0224214]
[1744361160812,44.1,117.17,117.15,8.5630214]
[1744361161011,44.1,117.17,117.15,0.0224214]
[1744361161611,44.1,117.17,117.16,8.5402]
[1744361161799,44.1,117.17,117.15,0.0224214]
[1744361162003,44.1,117.17,117.15,8.5629214]
[1744361162510,44.1,117.17,117.15,0.0224214]
[1744361163311,8.5402,117.16,117.15,0.0224214]
[1744361164006,44.1,117.17,117.15,0.0224214]
[1744361165411,13.64874734,117.16,117.15,0.0224214]
[1744361165811,52.6396,117.17,117.15,0.0224214]
[1744361166212,44.1,117.17,117.15,0.0224214]
[1744361167015,52.6399,117.17,117.15,0.0224214]
[1744361167325,44.1,117.17,117.15,0.0224214]
[1744361171712,44.1,117.17,117.16,5.08104187]
[1744361171903,44.1,117.17,117.16,14.53364021]
[1744361174117,44.1,117.17,117.16,23.07384021]
[1744361175014,44.1,117.17,117.16,23.09187926]
[1744361175818,44.1,117.17,117.16,14.55167926]
[1744361178521,44.1,117.17,117.16,14.62530231]
[1744361179025,44.1,117.17,117.16,5.11255415]
[1744361179322,44.1,117.17,117.15,0.0224214]
[1744361179520,13.64874734,117.16,117.1,34.80960709]
[1744361179721,13.64874734,117.14,117.11,8.60753573]
[1744361179920,719.54,117.13,117.11,8.60753573]
[1744361180117,719.54,117.13,117.1,34.80960709]
[1744361180624,719.59922817,117.13,117.1,34.80960709]
[1744361180923,719.59922817,117.13,117.1,43.35420709]
[1744361181124,676.39922817,117.13,117.11,17.13300642]
[1744361181325,43.2,117.12,117.11,8.63145076]
[1744361181619,43.2,117.12,117.11,8.50945135]
[1744361182221,43.2,117.12,117.11,17.14811869]
[1744361185621,43.2,117.12,117.11,8.63866734]
[1744361186029,56.84874734,117.12,117.11,8.63866734]
[1744361186226,8.5442,117.11,117.07,15.0468]
[1744361186623,0.06405959,117.1,117.08,8.65965609]
[1744361187122,13.64874734,117.09,117.03,46.50865777]
[1744361187323,13.64874734,117.04,117.02,92.82561892]
[1744361187526,41.68,117.03,117.02,92.82561892]
[1744361187726,41.68,117.03,117.0,81.6648473]
[1744361188033,55.32874734,117.03,117.0,81.6648473]
[1744361188425,41.68,117.03,117.0,81.6648473]
[1744361189730,0.06120073,117.04,117.01,8.5508]
[1744361189930,0.06120073,117.04,117.0,2.1878]
[1744361190331,0.06120073,117.04,117.01,2.2678]
[1744361190532,8.61060073,117.04,117.01,2.2678]
[1744361190922,0.06120073,117.04,117.01,2.2678]
[1744361191636,0.06120073,117.04,117.0,2.1878]
[1744361192026,8.61040073,117.04,117.0,10.7396]
[1744361192833,8.61040073,117.04,117.0,2.1878]
[1744361193539,8.5499,117.03,117.0,2.1878]
[1744361195237,0.06120073,117.04,117.0,2.1878]
[1744361195439,13.70994807,117.04,117.0,2.1878]
[1744361195641,13.64874734,117.02,116.95,2.1933]
[1744361195942,13.70365134,117.0,116.95,2.1933]
[1744361196133,41.774904,117.0,116.95,2.1933]
[1744361196335,50.327004,117.0,116.96,8.5544]
[1744361196839,41.774904,117.0,116.95,2.1933]
[1744361197340,55.42365134,117.0,116.95,2.1933]
[1744361197544,8.5546,116.97,116.95,2.1933]
[1744361197839,41.72,117.0,116.95,2.1933]
[1744361198038,0.05779936,116.97,116.95,2.1933]
[1744361198940,8.5557,116.95,116.91,8.5579]
[1744361199139,8.5557,116.95,116.9,4.3337]
[1744361199335,0.06109564,116.94,116.9,4.3337]
[1744361199536,732.44874734,116.99,116.91,13.64874734]
[1744361199736,718.8,116.99,116.91,13.64874734]
[1744361199933,718.8,116.99,116.93,13.64874734]
[1744361200844,0.06081812,116.97,116.95,0.05615081]
[1744361201038,718.8,116.99,116.95,0.05615081]
[1744361201237,727.353,116.99,116.95,10.89065081]
[1744361202147,0.05476757,116.98,116.96,8.5548]
[1744361202844,8.60826757,116.98,116.95,10.89105081]
[1744361203447,0.05476757,116.98,116.95,10.89105081]
[1744361203741,0.05476757,116.98,116.95,2.33545081]
[1744361204043,718.8,116.99,116.95,15.98419815]
[1744361204245,41.72,117.02,116.98,8.5534]
[1744361204446,41.72,117.02,116.97,13.64874734]
[1744361204935,0.06017215,117.01,116.98,8.60972634]
[1744361205140,0.06017215,117.01,116.98,0.05702634]
[1744361205436,8.61167215,117.01,116.98,0.05702634]
[1744361205946,0.06017215,117.01,116.98,8.61002634]
[1744361206147,0.06017215,117.01,116.98,0.05702634]
[1744361206547,41.80017215,117.01,116.98,0.05702634]
[1744361207047,8.5519,117.0,116.98,0.05702634]
[1744361207541,41.80017215,117.01,116.98,0.05702634]
[1744361207742,8.5524,117.0,116.98,0.05702634]
[1744361207942,41.80017215,117.01,116.98,0.05702634]
[1744361208148,50.35177215,117.01,116.98,0.05702634]
[1744361208848,50.35177215,117.01,116.98,8.61032634]
[1744361210651,41.80017215,117.01,116.99,8.5525]
[1744361210851,41.80017215,117.01,116.98,0.05702634]
[1744361211456,41.80017215,117.01,117.0,8.5519]
[1744361211650,50.2893,117.04,116.99,13.64874734]
[1744361212046,41.74,117.04,117.0,2.2824]
[1744361212450,41.74,117.04,117.01,2.2757]
[1744361212755,50.34936476,117.04,117.01,2.33224308]
[1744361212955,50.34936476,117.04,117.01,10.88304308]
[1744361213449,41.80026476,117.04,117.01,2.33224308]
[1744361213651,41.80026476,117.04,117.02,8.5505]
[1744361214555,41.80026476,117.04,117.03,8.5497]